Cogmind - Beta 11 X5 @@@ ROGUE MODE // 2021.06.13 @ 23:06:11 Player: cptwinky Result: Destroyed by Y-45 Defender with Heavy Assault Rifle Performance ------------- Evolutions (0) 0 Regions Visited (2) 400 Robots Destroyed (38) 190 Value Destroyed (866) 866 Prototype IDs (5) 100 Alien Tech Used (0) 0 Bonus (0) 0 TOTAL SCORE: 1556 Bonus ------- None Cogmind --------- Core Integrity 0/250 Matter 257/300 Energy 95/125 System Corruption 0% Temperature Warning (302) Movement Treading (160) Location -10/Mines Parts ------- > --- POWER (1) -------- Light Ion Engine > --- PROPULSION (2) --- Light Treads Light Treads > --- UTILITY (2) ------ Large Storage Unit Propulsion Shielding > --- WEAPON (2) ------- Medium Laser Light Cannon > --- INVENTORY (15) --- Light Treads Light Treads Compact Wheel Compact Wheel High-capacity Storage Unit Hacking Suite Hacking Suite Trap Extractor Light Cannon Grenade Launcher Datajack Makeshift Spear Peak State ------------ > --- POWER ------------ Light Ion Engine > --- PROPULSION ------- Light Treads Light Treads > --- UTILITY ---------- Large Storage Unit Propulsion Shielding > --- WEAPON ----------- Medium Laser Light Assault Rifle > --- INVENTORY -------- Light Ion Engine Light Treads Light Treads Light Treads Compact Wheel Compact Wheel High-capacity Storage Unit Hacking Suite Hacking Suite Trap Extractor Medium Laser Medium Laser Light Cannon Grenade Launcher Datajack [Rating: 9] Favorites ----------- Power Light Ion Engine Engine Light Ion Engine Propulsion Light Treads Treads Light Treads Utility Large Storage Unit Storage Large Storage Unit Protection Propulsion Shielding Weapon Medium Laser Energy Gun Medium Laser Ballistic Gun Light Assault Rifle Launcher Grenade Launcher Special Melee Weapon Datajack Build | -11 -10 -10 ------- Run | Scr Mat Min Slots Evolved . | . . . Power . | . . . Propulsion . | . . . Utility . | . . . Weapon . | . . . Parts Attached 29 | 6 11 12 Power 3 | 1 1 1 Engine 3 | 1 1 1 Core . | . . . Reactor . | . . . Propulsion 3 | 2 . 1 Treads 3 | 2 . 1 Leg . | . . . Wheel . | . . . Hover . | . . . Flight . | . . . Utility 5 | 1 4 . Device . | . . . Storage 2 | 1 1 . Processor . | . . . Hackware . | . . . Protection 3 | . 3 . Artifact . | . . . Weapon 18 | 2 6 10 Energy Gun 10 | 2 3 5 Energy Cannon . | . . . Ballistic Gun 2 | . 2 . Ballistic Cannon 1 | . . 1 Launcher 4 | . . 4 Special Weapon . | . . . Impact Weapon . | . . . Slashing Weapon . | . . . Piercing Weapon . | . . . Special Melee Weapon 1 | . 1 . Unidentified Prototypes . | . . . Parts Lost 7 | . 4 3 Power 2 | . 1 1 Propulsion 1 | . . 1 Utility . | . . . Weapon 4 | . 3 1 Highest Loss Streak 2 | . 2 2 Average Slot Usage (%) 99 | . 98 99 Engine 13 | . 14 13 Treads 28 | . 28 28 Storage 14 | . 14 14 Protection 13 | . 13 14 Energy Gun 21 | . 18 27 Ballistic Gun 5 | . 8 . Naked Turns . | . . . Heaviest Build 32 | 12 32 29 Greatest Support 40 | 40 40 40 Greatest Overweight (x) . | . . . Average Overweight (x) . | . . . Largest Inventory Capacity 15 | 8 15 15 Average Capacity 14 | 6 14 15 Most Carried 15 | 4 15 15 Average Carried 11 | 1 10 14 Final Capacity 15 | 8 15 15 Final Carried 15 | 4 15 12 Class Distribution -------------------- 100% | Mutant Dominant Class ---------------- Mutant | -10/Materials Mutant | -10/Mines Resources | -11 -10 -10 ----------- Run | Scr Mat Min Matter Collected 555 | 234 206 115 Remotely . | . . . Salvage Created 1108 | . 942 166 Parts 71 | . 56 15 Haulers Intercepted 2 | . 2 . Recyclers Shooed 7 | . 6 1 Parts Field Recycled . | . . . Retrieved Matter . | . . . Parts Self-Destructed . | . . . Prevented . | . . . Kills | -11 -10 -10 ------- Run | Scr Mat Min Combat Hostiles Destroyed 30 | . 20 10 Guns 22 | . 20 2 AOE 8 | . . 8 Classes Destroyed 6 | . 6 . Worker 1 | . 1 . Hauler 2 | . 2 . Operator 2 | . 2 . Watcher 3 | . 3 . Swarmer 12 | . 6 6 Grunt 18 | . 14 4 Best Kill Streak 7 | . 7 3 Combat Bots Only 4 | . 4 3 Max Kills in Single Turn 3 | . 1 3 Gunslinging . | . . . Exploded 3 | . . 3 Melee . | . . . Uniques/NPCs Destroyed . | . . . Combat | -11 -10 -10 -------- Run | Scr Mat Min Damage Taken 1293 | . 860 433 Core 250 | . 142 108 Absorbed by Shields . | . . . Core Remaining (%) 100 | 100 . . Volleys Fired 114 | . 95 19 Largest 2 | . 2 2 Hottest 100 | . 100 100 Shots Fired 211 | . 180 31 Gun 205 | . 180 25 Cannon . | . . . Launcher 6 | . . 6 Special . | . . . Kinetic 53 | . 53 . Thermal 81 | . 56 25 Explosive 6 | . . 6 Electromagnetic 71 | . 71 . Robot Hit Streak 22 | . 22 15 Robot Miss Streak 4 | . 4 1 Penetration Max . | . . . Secondary Targets 4 | . 4 . Max Gunslinging Chain 1 | . 1 . Shots Hit Robots 129 | . 108 21 Core Hits 62 | . 44 18 Critical Kills . | . . . Critical Parts Destroyed . | . . . Critical Strikes 5 | . 4 1 Burn 5 | . 4 1 Melee Attacks . | . . . Impact . | . . . Slashing . | . . . Piercing . | . . . Sneak Attacks . | . . . Combat Hostiles . | . . . Follow-up Attacks . | . . . Damage Inflicted 2093 | . 1444 649 Guns 1650 | . 1437 213 Cannons . | . . . Explosions 421 | . . 421 Melee . | . . . Ramming 22 | . 7 15 Kinetic 332 | . 332 . Thermal 692 | . 479 213 Explosive 421 | . . 421 Electromagnetic 626 | . 626 . Impact . | . . . Slashing . | . . . Piercing . | . . . Highest Corruption . | . . . Average Corruption . | . . . Corruption Purged . | . . . Overload Shots . | . . . Overflow Damage 16 | . . 16 Projectiles . | . . . Explosions 16 | . . 16 Melee . | . . . Knockbacks . | . . . Impact . | . . . Kinetic . | . . . Secondary . | . . . Self-Inflicted Damage 67 | . . 67 Shots 4 | . . 4 Rammed 3 | . 1 2 Targets Rammed 3 | . 1 2 Kicked . | . . . Crushed . | . . . Highest Temperature 286 | . 286 286 Average Temperature 79 | . 81 68 Received Heat Transfer 594 | . 414 180 Effects 2 | . 2 . Interference 2 | . 2 . Siege Activations . | . . . Robots Corrupted 2 | . 2 . Combat Hostiles . | . . . Parts Fried 7 | . 7 . Impact Corruptions . | . . . Robots Melted . | . . . Combat Hostiles . | . . . Parts Melted 4 | . 4 . Heat Transferred 2405 | . 1702 703 Parts Sabotaged . | . . . Parts Stolen . | . . . Parts Stripped . | . . . Power Chain Reactions . | . . . Missiles Intercepted . | . . . Alert | -11 -10 -10 ------- Run | Scr Mat Min Peak Influence 287 | . 287 275 Initial 15 | . . 15 Average 82 | . 72 108 Maximum Alert Level 1 | . 1 1 Low Security (%) 89 | 100 90 86 Level 1 10 | . 9 13 Level 2 . | . . . Level 3 . | . . . Level 4 . | . . . Level 5 . | . . . High Security . | . . . Max Security . | . . . Squads Dispatched 8 | . 8 . Investigation 6 | . 6 . Extermination . | . . . Reinforcement 2 | . 2 . Assault . | . . . Garrison . | . . . Intercept . | . . . Construction Impeded . | . . . Haulers Reinforced . | . . . Cargo Convoy Interrupts . | . . . Stealth | -11 -10 -10 --------- Run | Scr Mat Min Distress Signals . | . . . Communications Jammed . | . . . Distress Signals . | . . . Times Spotted 42 | . 30 12 Peak Tracking Total 5 | . 5 3 Tactical Retreats . | . . . Traps | -11 -10 -10 ------- Run | Scr Mat Min Traps Triggered 2 | . 2 . Indirectly . | . . . Trap Hack Attempts 7 | . 7 . Triggered . | . . . Disarmed 1 | . 1 . Reprogrammed . | . . . Reused . | . . . Traps Extracted . | . . . Installed . | . . . Triggered . | . . . Machines | -11 -10 -10 ---------- Run | Scr Mat Min Machines Disabled 1 | . . 1 Max in Single Turn 1 | . . 1 Machines Sabotaged . | . . . Garrisons Compromised . | . . . Overloaded Fab Kills . | . . . Fab Network Shutdowns . | . . . Hacking | -11 -10 -10 --------- Run | Scr Mat Min Machines Accessed 9 | . 9 . Terminals 6 | . 6 . Fabricators . | . . . Repair Stations 1 | . 1 . Recycling Units 2 | . 2 . Scanalyzers . | . . . Garrison Access . | . . . Total Hacks 32 | . 32 . Successful 9 | . 9 . Failed 22 | . 22 . Catastrophic 3 | . 3 . Database Lockouts 1 | . 1 . Manual 11 | . 11 . Terminals 23 | . 23 . Fabricators . | . . . Repair Stations 3 | . 3 . Recycling Units 6 | . 6 . Scanalyzers . | . . . Garrison Access . | . . . Terminal Hacks 5 | . 5 . Robot Analysis 1 | . 1 . Prototype ID Bank 2 | . 2 . Unreport Threat 1 | . 1 . Zone Layout 1 | . 1 . Fabricator Hacks . | . . . Repair Station Hacks 2 | . 2 . Scan Component 1 | . 1 . Repair 1 | . 1 . Recycling Unit Hacks . | . . . Scanalyzer . | . . . Garrison Access Hacks . | . . . Unauthorized Hacks 2 | . 2 . Terminals 1 | . 1 . Search 1 | . 1 . Fabricators . | . . . Repair Stations . | . . . Recycling Units 1 | . 1 . Tunnel 1 | . 1 . Scanalyzers . | . . . Garrison Access . | . . . Data Cores Recovered . | . . . Used . | . . . Hacking Detections 8 | . 8 . Full Trace Events 4 | . 4 . Feedback Events . | . . . Feedback Blocked . | . . . Robot Schematics Acquired . | . . . Robots Built . | . . . Matter . | . . . Time . | . . . Total Robot Build Rating . | . . . Part Schematics Acquired . | . . . Parts Built . | . . . Matter . | . . . Time . | . . . Total Part Build Rating . | . . . Parts Repaired 1 | . 1 . Time 36 | . 36 . Parts Recycled . | . . . Recycled Matter . | . . . Retrieved Matter . | . . . Retrieved Components . | . . . Parts Scanalyzed . | . . . Part Schematics Acquired . | . . . Parts Damaged . | . . . Bothacking | -11 -10 -10 ------------ Run | Scr Mat Min Used RIF Installer . | . . . Robots Hacked . | . . . Non-combat . | . . . Combat . | . . . Robot Hacks Applied . | . . . Relay Couplers Released . | . . . Robots Rewired . | . . . Allies Hacked . | . . . Hacks Repelled . | . . . Allies | -11 -10 -10 -------- Run | Scr Mat Min Total Allies . | . . . Largest Group . | . . . Highest-Rated Group . | . . . Highest-Rated Ally . | . . . Total Orders . | . . . Ally Attacks . | . . . Total Damage . | . . . Kills . | . . . Allies Corrupted . | . . . Allies Melted . | . . . Intel | -11 -10 -10 ------- Run | Scr Mat Min Robot Analysis Total 1 | . 1 . Derelict Logs Recovered 1 | . . 1 Drone Launches . | . . . Drone Recoveries . | . . . Exploration | -11 -10 -10 ------------- Run | Scr Mat Min Turns Passed 2684 | 87 1680 917 Spaces Moved 1303 | 50 750 503 Core 4 | 4 . . Treads 1299 | 46 750 503 Legs . | . . . Wheels . | . . . Hover . | . . . Flight . | . . . Fastest Speed 50 | 50 160 160 Average Speed 159 | 151 160 160 Slowest Speed 160 | 160 160 160 Overloaded Moves . | . . . Propulsion Burnouts . | . . . Robots Hopped . | . . . Cave-ins Triggered . | . . . Exploration Rate (%) 61 | 4 86 95 Regions Visited 2 Branch Regions 1 Pre-discovered Areas 1 | . 1 . Known Exits Taken . | . . . Unknown Exits Taken 2 | 1 1 . Scrap Searched 1 | . . 1 Spaces Dug 15 | . . 15 Terrain Destroyed 50 | . . 50 Melee . | . . . Projectile . | . . . AOE 50 | . . 50 Terrain Rammed . | . . . Walls Destroyed . | . . . Machines Disabled . | . . . Actions | -11 -10 -10 --------- Run | Scr Mat Min Total 1696 | 59 1057 580 Wait 207 | . 167 40 Move 1301 | 49 749 503 Hop . | . . . Pick Up 25 | 4 19 2 Fast Attach 9 | 6 3 . Attach 7 | . 4 3 Detach 2 | . 2 . Swap 13 | . 4 9 Drop 8 | . 6 2 Fire 114 | . 95 19 Melee . | . . . Ram . | . . . Kick . | . . . Crush 3 | . 1 2 Escape Stasis . | . . . Rewire . | . . . Trap 7 | . 7 . Miscellaneous . | . . . Route ------- -11/Scrapyard -10/Materials (discovered 3 exits: [*Mat x2] / [*Min]) -10/Mines (discovered 2 exits: [*Mat x2]) History --------- Turn | Location | Event 8 | -11/Scrapyard | Discovered new exit (range 15) 88 | -11/Scrapyard | Entered Materials 197 | -10/Materials | Central database locked down 310 | -10/Materials | Build established: Mutant 313 | -10/Materials | Discovered new exit (range 16) 770 | -10/Materials | Repaired Corrupted Lgt. Treads 817 | -10/Materials | Core integrity fell below 50% 855 | -10/Materials | Discovered new exit (range 8) 1652 | -10/Materials | Discovered new exit (range 16) 1768 | -10/Materials | Entered Mines 2148 | -10/Mines | Discovered new exit (range 8) 2161 | -10/Mines | Learned 2 Materials zone layouts 2233 | -10/Mines | Discovered new exit (range 15) 2393 | -10/Mines | A weapon hastily lodged in a ceiling crevice suddenly fell to the ground 2679 | -10/Mines | Core integrity fell below 20% 2685 | -10/Mines | Destroyed by Y-45 Defender with Heavy Assault Rifle Last Messages --------------- 02118_ U-05 Engineer builds a Wall. 02148_ EXIT=FOUND 02161_ Acquired derelict log, extracted data. Data stored: Materials zone layouts (x2). 02206_ Slammed into K-01 Serf. 02233_ EXIT=FOUND 02393_ A Mak. Spear has been hastily shoved under some rubble with a note attached: "Stab them where it hurts!" 02396_ Acquired Mak. Spear. 02407_ Dropped Mining Laser. 02505_ T-07 Excavator is excavating. 02669_ Y-45 Defender suffers critical hit (Burn). 02673_ U-05 Engineer builds a Door. 02678_ Critical hit (Burn: +37). 02682_ Y-45 Defender heat spikes uncontrollably. 02682_ Lgt. Treads destroyed. 02684_ Y-45 Defender heat spikes uncontrollably. 02684_ Med. Laser destroyed. 02685_ Y-45 Defender heat spikes uncontrollably. 02685_ Critical hit (Burn: +37). Map ----- +----------------------------------------------------+ | ??## ##????# #?###????# " * #? | | ### #?????# ## ##???# = ##? | | ######## # #???# [ #? | | ### #???# = #? | | ## #???# * #? | | #### ### ##???# #? | | ???## # ##?#####????# ##? | | ???## ## #???????????# #?? | | ??## ### #???????????#########?? | | ??# ##?# #?????????????????????? | | ??# ##?## #??#######????????????? | | ??# #??# ## #????????????? | | ### ##??#! # #????????????? | | ## #???## =## """ #????????????? | | ## ##???## = """ ?????????????? | | ### #???# # ## """ ?????????????? | | ??## #???# # ### #????????????? | | ???# #???### # #????????????? | | #### #????#### #########????????????? | | #????? # # ???????????????????? | | #### #?????# #*##????????????##?????? | | ???# ######### ##??????????""#?????? | | ???# ####?????? #?????? | | ???########### ##???? #??????? | | ?????????????## #?###++###?????? | | ??????????????## #?#@Y #?????? | | ???????????????# ##?# Y #####?? | | ???????????????## #### #? | | ????????????????## #? | | ?????????????????## u #? | | ??????????????????####### < #? | | ????????????????????????# #? | | ????????????????????????# #? | | ????????????????????????# #? | | ????????????????????????# #? | | ????????????????????????# #? | | ????????????????????????# #? | | ????????????????????????# #? | | ????????????????????????# #? | | ????????????????????????#############? | | ?????????????????????????????????????? | | | | | | | | | | | | | | | | | | | +----------------------------------------------------+ Best States ------------- Heat Dissipation 25 Energy Generation 10 Energy Capacity 125 Matter Stores 300 Matter Capacity 300 Sight Range 16 Terrain Scan Density 10 Propulsion Shielding 33 Evasion (%) 40 Recoil Reduction 2 Item Schematics ----------------- None Robot Schematics ------------------ None Fabricated ------------ Nothing Alien Tech Used ----------------- None Achievements -------------- None Challenges ------------ None Game ------ Seed RecoilRecyclingMembrane Manual? 0 Play Time 00:12:41 Cumulative 853.3 hours Start 2021.06.13 @ 22:55:59 End 2021.06.13 @ 23:06:11 Sessions 1 Manual Loads 0 Difficulty Rogue Special Mode None Game No. 599 Rogue 595 Adventurer 4 Explorer 0 Win Type - Total 94 Types 72/9/4/4/2/0/0/2/1 Lore% 94 Gallery% 97 Achievement% 96 Wizard Run 0 Options --------- ASCII 0 Keyboard 1 Movement Vi Keybinds 0 Fullscreen 0 Font 16/Terminus Map View 76x50 Tactical HUD 1 Map Filters NONE Filters NONE Steam 1 RUN: feb565fe-821d-479d-bd95-f041d2504c71